bitfinex-derivatives/quotes_ETHF0:USTF0_20250411
["timestamp","ask_amount","ask_price","bid_price","bid_amount"]
[1744402551991,1.73369601,1565.0,1564.9,7.07775]
[1744402552384,1.73369601,1565.0,1564.9,11.43875]
[1744402555189,0.00959601,1565.0,1564.9,11.43875]
[1744402557194,1.64219601,1565.0,1564.9,11.43875]
[1744402557897,2.92075601,1565.0,1564.9,11.43875]
[1744402558290,2.92075601,1565.0,1564.9,9.78305]
[1744402560196,2.92075601,1565.0,1564.9,8.5044]
[1744402560496,1.27865,1564.9,1564.8,1.27867]
[1744402560796,3.82815,1564.9,1564.8,1.27867]
[1744402561096,3.82815,1564.9,1564.8,2.95797]
[1744402562594,2.5495,1564.9,1564.8,2.95797]
[1744402562795,1.6855,1564.9,1564.8,2.95797]
[1744402563207,2.96415,1564.9,1564.8,2.95797]
[1744402563402,1.6855,1564.9,1564.8,2.95797]
[1744402564101,2.96415,1564.9,1564.8,2.95797]
[1744402564604,1.6855,1564.9,1564.8,2.95797]
[1744402566706,0.00959601,1565.0,1564.9,1.27865]
[1744402566908,0.00959601,1565.0,1564.9,7.95385]
[1744402568301,0.00959601,1565.0,1564.9,12.95385]
[1744402569207,3.21739601,1565.0,1564.9,9.74605]
[1744402569408,4.49601601,1565.0,1564.9,1.27865]
[1744402569611,1.27868,1564.9,1564.8,1.27866]
[1744402569804,4.49595601,1565.0,1564.9,1.27865]
[1744402570010,4.49595601,1565.0,1564.9,4.358]
[1744402570207,5.37245601,1565.0,1564.9,5.63665]
[1744402570405,7.12755601,1565.0,1564.9,5.63665]
[1744402571809,5.84899601,1565.0,1564.9,5.63665]
[1744402572109,7.12755601,1565.0,1564.9,5.63665]
[1744402572510,5.84899601,1565.0,1564.9,5.63665]
[1744402572702,7.12755601,1565.0,1564.9,5.63665]
[1744402573105,5.84899601,1565.0,1564.9,5.63665]
[1744402573411,3.21739601,1565.0,1564.9,5.63665]
[1744402573709,3.21739601,1565.0,1564.9,6.53405]
[1744402574209,3.21739601,1565.0,1564.9,11.53405]
[1744402574709,3.21739601,1565.0,1564.9,6.53405]
[1744402576911,0.00959601,1565.0,1564.9,9.74185]
[1744402578614,1.28815601,1565.0,1564.9,9.74185]
[1744402578815,3.02535601,1565.0,1564.9,8.84445]
[1744402579115,3.02535601,1565.0,1564.9,7.5658]
[1744402579310,3.94245601,1565.0,1564.9,7.5658]
[1744402579706,3.94245601,1565.0,1564.9,4.358]
[1744402579915,8.94245601,1565.0,1564.9,4.358]
[1744402580215,1.27873,1564.8,1564.7,10.03225956]
[1744402580409,1.27873,1564.8,1564.7,10.01923939]
[1744402580605,3.85783,1564.8,1564.7,10.01923939]
[1744402581415,2.5791,1564.8,1564.7,14.98592168]
[1744402582714,3.85783,1564.8,1564.7,14.98592168]
[1744402582911,8.85783,1564.8,1564.7,14.98592168]
[1744402586508,1.27881,1564.7,1564.6,0.00959601]
[1744402586712,7.08081,1564.7,1564.6,0.00959601]
[1744402586913,12.08081,1564.7,1564.6,0.00959601]
[1744402590318,7.08081,1564.7,1564.6,0.00959601]
[1744402591419,12.06842783,1564.7,1564.6,0.00959601]
[1744402591721,12.06842783,1564.7,1564.6,1.28848601]
[1744402591923,8.19541783,1564.7,1564.6,7.91508601]
[1744402592118,4.98761783,1564.7,1564.6,11.12288601]
[1744402592815,4.98761783,1564.7,1564.6,99.73188601]
[1744402593014,4.98761783,1564.7,1564.6,140.53188601]
[1744402595323,2.19149182,1564.7,1564.6,140.53188601]
[1744402595524,8.10621529,1564.8,1564.7,1.27881]
[1744402595727,0.6178,1564.8,1564.7,13.17201]
[1744402595926,0.1304,1564.9,1564.8,1.27873]
[1744402596126,0.11737983,1564.9,1564.8,47.84453]
[1744402596322,0.00959601,1565.0,1564.9,1.27865]
[1744402596522,0.00959601,1565.0,1564.9,2.93595]
[1744402600339,0.00959601,1565.0,1564.9,7.93595]
[1744402601136,0.00959601,1565.0,1564.9,2.93595]
[1744402611644,0.00959601,1565.0,1564.9,43.73595]
[1744402612340,0.00959601,1565.0,1564.9,48.09095]
[1744402612543,2.94735601,1565.0,1564.9,5.63365]
[1744402612740,3.86595601,1565.0,1564.9,5.63365]
[1744402612934,1.66879601,1565.0,1564.9,5.63365]
[1744402613242,0.00959601,1565.0,1564.9,7.40865]
[1744402616147,2.46749601,1565.0,1564.9,7.40865]
[1744402618143,2.46749601,1565.0,1564.9,5.63365]
[1744402618345,3.74605601,1565.0,1564.9,5.63365]
[1744402618545,2.46749601,1565.0,1564.9,5.63365]
[1744402619244,3.74605601,1565.0,1564.9,5.63365]
[1744402619652,2.46749601,1565.0,1564.9,5.63365]
[1744402621955,1.63119601,1565.0,1564.9,7.29285]
[1744402624756,1.63119601,1565.0,1564.9,10.50065]
[1744402625656,4.18709601,1565.0,1564.9,10.50065]
[1744402626154,4.80469601,1565.0,1564.9,10.50065]
[1744402626557,4.80469601,1565.0,1564.9,7.29285]
[1744402626744,4.80469601,1565.0,1564.9,10.50065]
[1744402629053,4.80469601,1565.0,1564.9,7.29285]
[1744402629256,4.80469601,1565.0,1564.9,10.50065]
[1744402631354,4.80469601,1565.0,1564.9,8.84145]
[1744402631860,4.80469601,1565.0,1564.9,5.63365]
[1744402632557,4.80469601,1565.0,1564.9,7.24385]
[1744402634360,4.80469601,1565.0,1564.9,48.04385]
[1744402635056,4.80469601,1565.0,1564.9,5.63365]
[1744402644359,3.18309601,1565.0,1564.9,5.63365]
[1744402644564,3.18309601,1565.0,1564.9,7.30895]
[1744402645160,4.83309601,1565.0,1564.9,7.30895]
[1744402645865,4.83309601,1565.0,1564.9,5.63365]
[1744402646064,6.11165601,1565.0,1564.9,5.63365]
[1744402646670,4.83309601,1565.0,1564.9,5.63365]
[1744402647560,4.83309601,1565.0,1564.9,7.29245]
[1744402648469,3.18309601,1565.0,1564.9,12.29245]
[1744402648671,6.01e-06,1565.0,1564.9,15.50025]
[1744402649072,6.32228529,1565.2,1565.0,3.19641]
[1744402649274,6.32228529,1565.2,1565.1,8.09348]
[1744402649670,6.32228529,1565.2,1565.1,13.09348]
[1744402650175,6.32228529,1565.2,1565.1,8.09348]
[1744402652178,6.32228529,1565.2,1565.1,5.36728]
[1744402652479,6.32228529,1565.2,1565.1,1.27848]
[1744402652480,10.09148529,1565.2,1565.1,1.27848]
[1744402652782,15.09151529,1565.2,1565.1,1.27848]
[1744402653480,15.09151529,1565.2,1565.1,27.86054199]
[1744402653481,7.4908,1565.2,1565.1,27.86054199]
[1744402654584,2.4908,1565.2,1565.1,27.86054199]
[1744402656478,0.00959601,1565.3,1565.2,1.2784]
[1744402656779,0.00959601,1565.3,1565.2,9.172]
[1744402657181,0.00959601,1565.3,1565.2,14.172]
[1744402657379,6.01e-06,1565.3,1565.2,14.172]
[1744402657781,6.01e-06,1565.3,1565.2,14.67403515]
[1744402660781,6.01e-06,1565.3,1565.2,9.67403515]
[1744402660984,6.01e-06,1565.3,1565.2,41.22618398]
[1744402665186,6.01e-06,1565.3,1565.2,21.25567049]
[1744402665387,6.01e-06,1565.3,1565.2,36.28796691]
[1744402670992,6.01e-06,1565.3,1565.2,27.89233176]
[1744402671196,0.92820601,1565.3,1565.2,32.24133176]
[1744402671383,5.92820601,1565.3,1565.2,32.24133176]
[1744402671589,8.85322601,1565.3,1565.2,32.24133176]
[1744402671786,8.85322601,1565.3,1565.2,30.96293176]
[1744402672606,8.85322601,1565.3,1565.2,32.24133176]
[1744402672800,8.85322601,1565.3,1565.2,30.96293176]
[1744402673005,10.78270601,1565.3,1565.2,32.24133176]
[1744402673306,7.57490601,1565.3,1565.2,32.24133176]
[1744402674511,7.57490601,1565.3,1565.2,5.6274]
[1744402677910,8.85322601,1565.3,1565.2,5.6274]
[1744402678611,8.85322601,1565.3,1565.2,4.349]
[1744402679509,1.2784,1565.2,1565.1,1.27844]
[1744402679714,3.902,1565.2,1565.1,1.27844]
[1744402679909,8.902,1565.2,1565.1,1.27844]
[1744402681813,12.1098,1565.2,1565.1,1.27844]
[1744402683710,7.1098,1565.2,1565.1,1.27844]
[1744402683914,5.8314,1565.2,1565.1,1.27844]
[1744402684115,2.6236,1565.2,1565.1,3.96154]
[1744402684314,1.6741,1565.2,1565.1,7.16934]
[1744402685308,1.6741,1565.2,1565.1,4.48624]
[1744402686215,2.9525,1565.2,1565.1,4.48624]
[1744402686610,1.6741,1565.2,1565.1,1.27844]
[1744402687417,1.6741,1565.2,1565.0,7.34971]
[1744402687708,2.22308,1565.1,1565.0,4.349]
[1744402687913,2.22308,1565.1,1565.0,5.62756]
[1744402688110,2.22308,1565.1,1565.0,4.349]
[1744402688111,3.97998,1565.1,1565.0,4.349]
[1744402688305,7.18778,1565.1,1565.0,4.349]
[1744402689308,5.9093,1565.1,1565.0,5.62756]
[1744402691520,2.7015,1565.1,1565.0,5.62756]
[1744402691716,2.7015,1565.1,1565.0,7.35246]
[1744402691917,2.7015,1565.1,1565.0,8.24156]
[1744402692419,3.11670601,1565.3,1565.2,1.2784]
[1744402692724,0.92820601,1565.3,1565.2,1.2784]
[1744402693018,0.92820601,1565.3,1565.2,3.0033]
[1744402693320,2.69880601,1565.3,1565.2,3.0033]
[1744402693715,6.01e-06,1565.3,1565.2,3.9257]
[1744402693909,1.77060601,1565.3,1565.2,3.9257]
[1744402698325,6.01e-06,1565.3,1565.2,3.9257]
[1744402699321,6.01e-06,1565.3,1565.2,7.1335]
[1744402699526,6.01e-06,1565.3,1565.2,12.1335]
[1744402705026,6.01e-06,1565.3,1565.2,43.67044221]
[1744402705227,2.1883,1565.4,1565.3,1.27832]
[1744402705524,1.7429,1565.7,1565.6,1.27807]
[1744402705725,1.7429,1565.7,1565.6,5.62507]
[1744402708624,1.7992,1566.0,1565.9,1.27783]
[1744402708825,1.7992,1566.0,1565.9,5.62483]
[1744402709425,3.5718,1566.0,1565.9,5.62483]
[1744402710422,1.7726,1566.0,1565.9,7.23773]
[1744402710723,2.1871,1566.1,1566.0,1.27775]
[1744402710931,3.9012,1566.1,1566.0,2.89065]
[1744402712229,3.9012,1566.1,1565.9,5.62476]
[1744402712431,1.7141,1566.0,1565.9,5.62476]
[1744402713531,2.99185,1566.0,1565.9,5.62476]
[1744402713728,1.7141,1566.0,1565.9,5.62476]
[1744402713929,2.99185,1566.0,1565.9,4.347]
[1744402714130,11.19965,1566.0,1565.9,4.347]
[1744402714336,1.27791,1565.8,1565.7,7.5518]
[1744402714721,8.02581,1565.8,1565.7,8.82979]
[1744402717336,11.23361,1565.8,1565.7,5.62199]
[1744402718235,6.23361,1565.8,1565.7,5.62199]
[1744402718940,6.23361,1565.8,1565.7,4.344]
[1744402719435,3.02581,1565.8,1565.7,4.344]
[1744402720741,1.27807,1565.6,1565.5,4.35359601]
[1744402720941,1.27807,1565.6,1565.5,0.00959601]
[1744402721235,9.79797,1565.6,1565.5,0.00959601]
[1744402727037,9.79797,1565.6,1565.3,4.344]
[1744402727238,1.2784,1565.2,1565.1,4.344]
[1744402727542,4.4862,1565.2,1565.1,4.344]
[1744402727740,4.7188,1565.2,1565.1,4.344]
[1744402731848,4.7188,1565.2,1565.1,5.62248]
[1744402732037,4.7188,1565.2,1565.1,4.344]
[1744402737446,4.7188,1565.2,1565.1,5.62248]
[1744402740549,6.9066,1565.2,1565.1,5.62248]
[1744402741639,2.1878,1565.2,1565.1,12.29688]
[1744402741844,3.4662,1565.2,1565.1,8.21658]
[1744402742545,5.1167,1565.2,1565.1,8.21658]
[1744402742948,5.1167,1565.2,1565.1,11.42438]
[1744402743950,3.4662,1565.2,1565.1,11.42438]
[1744402744352,2.1878,1565.2,1565.1,11.42438]
[1744402744945,2.1878,1565.2,1565.1,16.42438]
[1744402746952,0.1475,1565.2,1565.1,16.42438]
[1744402747156,0.00959601,1565.3,1565.2,1.2784]
[1744402747349,0.00959601,1565.3,1565.2,2.9365]
[1744402747553,0.00959601,1565.3,1565.2,7.9365]
[1744402748651,12.48390565,1565.7,1565.6,1.27807]
[1744402748856,12.48390565,1565.7,1565.6,8.82887]
[1744402750160,1.27799,1565.7,1565.6,8.82887]
[1744402751767,4.85538,1565.9,1565.6,8.4396]
[1744402751967,1.27797,1565.8,1565.7,3.02148]
[1744402752769,1.27797,1565.8,1565.7,1.7435]
[1744402752969,1.27797,1565.8,1565.7,3.02149]
[1744402753667,2.93868,1565.9,1565.7,1.7435]
[1744402753862,0.8871,1566.0,1565.9,1.27783]
[1744402754169,2.31215,1566.0,1565.9,5.61983]
[1744402754368,2.31215,1566.0,1565.9,6.50363]
[1744402755967,1.0344,1566.0,1565.9,6.50363]
[1744402756169,0.1473,1566.0,1565.9,6.50363]
[1744402757070,7.03132,1566.1,1566.0,1.27775]
[1744402757266,5.7536,1566.1,1566.0,2.96845]
[1744402757470,4.8343,1566.1,1566.0,2.96845]
[1744402758069,1.6265,1566.1,1566.0,2.96845]
[1744402758371,2.19683,1566.2,1566.1,1.27767]
[1744402758569,3.88423,1566.2,1566.1,3.03717]
[1744402759169,2.6066,1566.2,1566.1,3.03717]
[1744402759372,3.88418,1566.2,1566.1,3.03717]
[1744402760373,2.6066,1566.2,1566.1,3.03717]
[1744402760573,3.88418,1566.2,1566.1,3.03717]
[1744402760774,2.6066,1566.2,1566.1,3.03717]
[1744402760971,3.88418,1566.2,1566.1,3.03717]
[1744402764378,3.88418,1566.2,1566.1,1.7595]
[1744402764579,1.27767,1566.1,1566.0,1.27768]
[1744402764771,3.00927,1566.1,1566.0,2.98088]
[1744402767379,1.7316,1566.1,1566.0,2.98088]
[1744402767878,3.00927,1566.1,1566.0,2.98088]
[1744402773883,3.00927,1566.1,1566.0,1.27768]
[1744402779586,1.7316,1566.1,1566.0,1.27768]
[1744402780790,3.00927,1566.1,1566.0,1.27768]
[1744402781288,1.7316,1566.1,1566.0,1.27768]
[1744402781491,1.7316,1566.1,1566.0,2.95128]
[1744402786097,3.00927,1566.1,1566.0,2.95128]
[1744402786397,3.00927,1566.1,1566.0,1.27768]
[1744402789994,1.7316,1566.1,1566.0,1.27768]
[1744402791493,3.00927,1566.1,1566.0,1.27768]
[1744402791696,1.7316,1566.1,1566.0,1.27768]
[1744402792391,3.00927,1566.1,1566.0,1.27768]
[1744402794594,3.00927,1566.1,1566.0,5.61568]
[1744402799105,1.7316,1566.1,1566.0,5.61568]
[1744402804608,3.00927,1566.1,1566.0,5.61568]
[1744402805009,8.02789589,1566.1,1566.0,27.27722332]
[1744402805309,13.02789589,1566.1,1566.0,21.66154332]
[1744402809413,1.27783,1565.9,1565.8,5.62248601]
[1744402810012,3.78583,1565.9,1565.8,5.62248601]
[1744402810915,3.78583,1565.9,1565.8,1.28748601]
[1744402811611,3.78583,1565.9,1565.8,0.00959601]
[1744402812115,8.80409275,1565.9,1565.8,0.00959601]
[1744402812617,8.80409275,1565.9,1565.8,1.28750601]
[1744402818421,8.80409275,1565.9,1565.8,0.00959601]
[1744402824438,8.80409275,1565.9,1565.8,1.28750601]
[1744402838240,8.94859275,1565.9,1565.8,1.28750601]
[1744402838647,5.16276275,1565.9,1565.8,1.28750601]
[1744402838945,5.16276275,1565.9,1565.8,12.09050601]
[1744402839745,3.78660275,1565.9,1565.8,12.09050601]
[1744402839944,2.30486275,1565.9,1565.8,12.09050601]
[1744402840140,7.52739413,1566.0,1565.9,1.27783]
[1744402840347,0.81904413,1566.0,1565.9,2.98253]
[1744402840545,7.35031963,1566.1,1566.0,1.27775]
[1744402840741,4.51069963,1566.1,1566.0,6.23355]
[1744402840944,9.98405473,1566.2,1566.1,1.27767]
[1744402841248,15.05587768,1566.4,1566.3,1.2775]
[1744402841440,15.05587768,1566.4,1566.3,5.00833222]
[1744402841747,15.05587768,1566.4,1566.3,10.00833222]
[1744402842845,15.05587768,1566.4,1566.3,10.00681061]
[1744402843545,15.05587768,1566.4,1566.3,10.81361061]
[1744402843948,0.8546,1566.7,1566.6,1.27726]
[1744402844449,2.13178,1566.7,1566.6,1.27726]
[1744402844747,1.2773,1566.6,1566.5,1.27731]
[1744402845048,1.27736,1566.5,1566.4,1.7979015]
[1744402845348,3.7434,1566.6,1566.5,1.27734]
[1744402846047,2.4661,1566.6,1566.5,1.27734]
[1744402850264,4.0624,1566.7,1566.6,1.27726]
[1744402850549,3.2078,1566.7,1566.6,5.60826]
[1744402850754,5.7979,1566.9,1566.8,1.27709]
[1744402851347,5.7979,1566.9,1566.8,3.01689]
[1744402853755,5.7979,1566.9,1566.8,1.27709]
[1744402856853,5.7979,1566.9,1566.8,3.04859]
[1744402858361,5.7979,1566.9,1566.8,1.27709]
[1744402858661,7.07491,1566.9,1566.8,1.27709]
[1744402859460,5.7979,1566.9,1566.8,1.27709]
[1744402860057,5.7979,1566.9,1566.8,2.90189]
[1744402867067,5.7979,1566.9,1566.8,3.42360463]
[1744402867268,2.5901,1566.9,1566.8,3.42360463]
[1744402867765,2.5901,1566.9,1566.8,3.42352788]
[1744402868467,2.5901,1566.9,1566.8,1.79872788]
[1744402870164,2.5901,1566.9,1566.8,3.52632788]
[1744402871375,2.5901,1566.9,1566.8,3.52788223]
[1744402871969,2.5901,1566.9,1566.8,3.52788196]
[1744402873759,1.7593,1566.9,1566.8,3.52788196]
[1744402873964,1.706,1567.0,1566.9,1.27701]
[1744402874163,4.882,1567.1,1566.9,7.88990196]
[1744402874364,0.8796,1567.2,1567.1,1.27685]
[1744402874560,1.27672,1567.3,1567.2,1.27669]
[1744402874764,1.27672,1567.3,1567.2,1.79988196]
[1744402874968,1.27672,1567.3,1567.2,1.79959865]
[1744402875571,2.11732,1567.3,1567.2,1.79959865]
[1744402876371,3.79152,1567.3,1567.2,1.79959865]
[1744402877866,3.2078,1567.6,1567.5,1.27652]
[1744402878065,0.51314603,1567.8,1567.5,1.27652]
[1744402878066,1.2764,1567.7,1567.5,6.12357429]
[1744402878272,0.8092,1567.6,1567.5,4.325]
[1744402878469,1.6603,1567.6,1567.5,4.84664321]
[1744402878665,2.93674,1567.6,1567.5,0.52164321]
[1744402878872,6.14454,1567.6,1567.5,4.84664321]
[1744402880171,6.14454,1567.6,1567.5,4.325]
[1744402881166,6.14454,1567.6,1567.4,1.28614601]
[1744402881167,1.27652,1567.5,1567.4,0.00959601]
[1744402881371,3.04922,1567.5,1567.4,0.00959601]
[1744402881567,8.04922,1567.5,1567.4,0.00959601]
[1744402882272,1.7727,1567.5,1567.4,1.80735985]
[1744402883073,3.04922,1567.5,1567.4,1.80735985]
[1744402883273,1.7727,1567.5,1567.4,1.80735985]
[1744402883876,1.7727,1567.5,1567.4,1.80710444]
[1744402884071,1.7727,1567.5,1567.4,1.80709816]
[1744402884772,1.7727,1567.5,1567.4,2.90260601]
[1744402884976,1.7727,1567.5,1567.4,3.42338127]
[1744402885875,1.7727,1567.5,1567.4,3.42327295]
[1744402887471,1.2765,1567.6,1567.4,2.14666295]
[1744402887672,6.38051,1568.1,1567.6,3.19112]
[1744402887673,3.3403,1568.1,1567.6,3.19112]
[1744402887974,1.6447,1568.0,1567.9,4.48392]
[1744402888176,1.6447,1568.0,1567.9,9.32929719]
[1744402889678,2.92082,1568.0,1567.9,9.32929719]
[1744402889884,6.12862,1568.0,1567.9,4.325]
[1744402890375,6.12862,1568.0,1567.9,5.6012]
[1744402890579,2.92082,1568.0,1567.9,5.6012]
[1744402891880,2.92082,1568.0,1567.9,4.325]
[1744402892080,2.92082,1568.0,1567.9,5.6012]
[1744402895389,1.6447,1568.0,1567.9,5.6012]
[1744402895690,1.6956,1568.1,1568.0,1.27612]
[1744402895887,2.97164,1568.1,1568.0,2.93672]
[1744402896189,4.67094,1568.1,1568.0,2.93672]
[1744402896791,3.3949,1568.1,1568.0,2.93672]
[1744402897490,6.37888,1568.5,1568.0,2.93672]
[1744402897491,3.2078,1568.6,1568.3,1.27587]
[1744402897682,3.2078,1568.6,1568.4,4.32]
[1744402897683,2.09751,1568.5,1568.4,4.32]
[1744402897986,3.79681,1568.5,1568.4,4.32]
[1744402898683,3.79681,1568.5,1568.4,5.59579]
[1744402899383,9.97487317,1568.8,1568.5,1.27571]
[1744402899584,1.27558,1568.7,1568.6,1.27556]
[1744402899787,4.68048,1568.7,1568.6,5.59556]
[1744402899987,3.4049,1568.7,1568.6,5.59556]
[1744402900188,11.25038317,1568.8,1568.7,1.27555]
[1744402900189,9.97487317,1568.8,1568.7,1.27555]
[1744402900379,9.97487317,1568.8,1568.7,3.00025]
[1744402900583,12.44307345,1568.9,1568.8,1.27547]
[1744402900785,10.69197345,1568.9,1568.8,6.72633099]
[1744402900988,13.37658553,1569.1,1569.0,1.2753]
[1744402901191,9.95869276,1569.3,1569.0,8.04616099]
[1744402901488,8.66902276,1569.3,1569.2,4.48294]
[1744402901796,4.46e-06,1569.3,1569.2,4.99986647]
[1744402901980,7.69828621,1569.4,1569.3,1.27506]
[1744402902185,7.69828621,1569.4,1569.3,46.91073023]
[1744402902381,6.86e-06,1569.4,1569.3,51.91073023]
[1744402903291,13.37658553,1569.7,1569.6,1.27482]
[1744402903489,13.37658553,1569.7,1569.4,1.7064]
[1744402903692,3.89672,1569.6,1569.5,4.319]
[1744402903990,2.6219,1569.6,1569.5,5.5939]
[1744402904591,2.6219,1569.6,1569.5,7.3349]
[1744402905193,1.7311,1569.6,1569.5,7.3349]
[1744402905593,3.00592,1569.6,1569.5,6.06]
[1744402905891,3.00592,1569.6,1569.5,4.319]
[1744402906493,6.21372,1569.6,1569.5,4.319]
[1744402908194,6.21372,1569.6,1569.5,5.5939]
[1744402908395,6.21372,1569.6,1569.5,4.319]
[1744402908587,3.00592,1569.6,1569.5,4.319]
[1744402908991,3.00592,1569.6,1569.5,5.5939]
[1744402910194,3.2078,1569.9,1569.8,1.27465]
[1744402910490,3.18583,1570.3,1569.9,1.27451]
[1744402910694,1.27457,1569.9,1569.8,5.5916]
[1744402910884,1.27455,1570.0,1569.9,1.27457]
[1744402911794,1.27457,1569.9,1569.8,8.79943]
[1744402911992,1.27457,1569.9,1569.8,3.2078]
[1744402912997,1.27465,1569.8,1569.7,0.00956511]
[1744402913187,4.57285,1569.8,1569.7,0.00956511]
[1744402917099,4.57285,1569.8,1569.7,3.21736511]
[1744402917302,4.57285,1569.8,1569.7,4.49210511]
[1744402918289,4.57285,1569.8,1569.7,3.21736511]
[1744402918694,4.57285,1569.8,1569.7,4.49210511]
[1744402919399,4.57285,1569.8,1569.7,0.00956511]
[1744402919905,3.18724,1569.6,1569.0,3.2078]
[1744402920201,1.27514,1569.3,1569.2,1.27509]
[1744402920398,1.27514,1569.2,1569.1,4.48295]
[1744402921199,1.27514,1569.2,1569.1,3.2078]
[1744402921406,1.27522,1569.1,1569.0,0.00956511]
[1744402921598,2.90592,1569.1,1569.0,0.00956511]
[1744402921794,6.11372,1569.1,1569.0,0.00956511]
[1744402922107,7.90592,1569.1,1569.0,0.00956511]
[1744402922804,2.90592,1569.1,1569.0,0.00956511]
[1744402925007,1.6307,1569.1,1569.0,1.28486511]
[1744402925205,3.2078,1570.1,1569.1,6.37613]
[1744402925509,1.75946211,1569.9,1569.8,1.27465]
[1744402926100,3.03403211,1569.9,1569.8,1.27465]
[1744402926305,1.27465,1569.8,1569.7,1.6244]
[1744402926509,2.92405,1569.8,1569.7,1.27474]
[1744402926709,1.6494,1569.8,1569.7,1.27474]
[1744402927413,3.2078,1571.2,1570.0,3.2078]
[1744402927600,4.83345,1571.1,1570.8,3.2078]
[1744402927802,3.2078,1571.0,1570.6,7.7748]
[1744402928006,1.27392,1570.7,1570.6,3.2078]
[1744402929015,3.04002,1570.7,1570.6,3.2078]
[1744402929712,3.04002,1570.7,1570.2,3.2078]
[1744402929713,1.27425,1570.3,1570.2,3.2078]
[1744402931120,0.00956511,1570.4,1570.1,0.00956511]
[1744402931121,1.27433,1570.2,1570.1,0.00956511]
[1744402932009,1.27433,1570.2,1570.1,1.28397511]
[1744402932215,1.27433,1570.2,1570.1,2.92047511]
[1744402932419,1.27431,1570.3,1570.1,2.92047511]
[1744402932619,1.27433,1570.2,1570.1,0.00956511]
[1744402933118,1.27433,1570.2,1570.1,1.28397511]
[1744402933321,1.27433,1570.2,1570.1,2.92047511]
[1744402934023,2.14438,1570.3,1570.2,1.27433]
[1744402934224,2.14438,1570.3,1570.2,2.91083]
[1744402935022,0.00956511,1570.4,1570.3,1.27425]
[1744402935228,7.2432,1571.0,1570.6,1.27398]
[1744402935427,1.6864,1570.9,1570.6,1.27398]
[1744402935725,1.274,1570.6,1570.5,3.2078]
[1744402936121,1.27409,1570.5,1570.4,1.7435]
[1744402936323,2.96049,1570.5,1570.4,1.7435]
[1744402936928,1.27417,1570.4,1570.3,3.2078]
[1744402937126,1.27433,1570.2,1570.1,4.96086511]
[1744402938424,2.99273,1570.2,1570.1,4.96086511]
[1744402943427,7.99273,1570.2,1570.1,3.21736511]
[1744402943625,1.27474,1569.7,1569.6,6.68877]
[1744402943828,1.27474,1569.7,1569.6,9.89657]
[1744402944826,1.27474,1569.7,1569.6,11.59127]
[1744402945234,1.28426511,1569.8,1569.7,1.27474]
[1744402945533,1.28426511,1569.8,1569.7,2.96944]
[1744402953840,0.00956511,1569.8,1569.7,2.96944]
[1744402954334,0.00956511,1569.8,1569.7,3.48823392]
[1744402955541,1.28421511,1569.8,1569.7,2.21349392]
[1744402955739,1.28421511,1569.8,1569.7,1.6947]
[1744402955941,2.99071511,1569.8,1569.7,1.6947]
[1744402956540,2.99071511,1569.8,1569.7,2.96944]
[1744402956729,2.99071511,1569.8,1569.7,1.6947]
[1744402957340,2.99071511,1569.8,1569.7,2.96944]
[1744402959140,2.99071511,1569.8,1569.7,1.6947]
[1744402960038,1.27474,1569.7,1569.6,4.565]
[1744402960237,2.90414,1569.7,1569.6,4.565]
[1744402960438,2.90414,1569.7,1569.6,5.83982]
[1744402960638,2.90414,1569.7,1569.6,6.2805]
[1744402960840,2.90414,1569.7,1569.6,4.565]
[1744402961237,1.27482,1569.6,1569.5,2.99989511]
[1744402962047,1.28425511,1569.8,1569.7,1.27474]
[1744402962640,1.28425511,1569.8,1569.7,3.03584]
[1744402965045,0.00956511,1569.8,1569.7,8.1283687]
[1744402965247,0.00956511,1569.8,1569.7,9.8325687]
[1744402966242,0.00956511,1569.8,1569.7,9.83306599]
[1744402966943,1.28421511,1569.8,1569.7,9.83306599]
[1744402967145,1.28421511,1569.8,1569.7,8.12886599]
[1744402967346,1.28421511,1569.8,1569.7,8.12932003]
[1744402968350,2.91171511,1569.8,1569.7,8.12932003]
[1744402969044,1.28421511,1569.8,1569.7,8.12932003]
[1744402969250,0.00956511,1569.8,1569.7,8.12932003]
[1744402969837,0.00956511,1569.8,1569.7,7.63884]
[1744402970039,0.00956511,1569.8,1569.7,8.12923289]
[1744402971043,2.15759,1570.2,1570.1,1.27441]
[1744402971249,0.8832,1570.2,1570.1,1.76480289]
[1744402971443,0.8832,1570.2,1570.1,3.37380289]
[1744402971643,3.2078,1570.6,1570.4,1.27411]
[1744402971840,3.18502,1570.7,1570.4,4.48191]
[1744402971841,1.27414,1570.5,1570.4,4.48191]
[1744402972148,1.27414,1570.5,1570.4,4.97167806]
[1744402972450,1.27414,1570.5,1570.4,2.88311]
[1744402972947,1.27417,1570.4,1570.3,4.61256511]
[1744402973154,3.2078,1570.6,1570.3,9.56160711]
[1744402973339,1.27395,1570.7,1570.4,8.491462]
[1744402973539,1.27395,1570.7,1570.6,1.27398]
[1744402973757,3.03705,1570.7,1570.6,5.87698]
[1744402974550,3.03705,1570.7,1570.6,4.603]
[1744402974751,1.274,1570.6,1570.5,2.88303]
[1744402975051,2.9408,1570.6,1570.5,2.88303]
[1744402975951,1.6668,1570.6,1570.5,2.88303]
[1744402976455,2.9408,1570.6,1570.5,2.88303]
[1744402976952,2.9408,1570.6,1570.5,1.609]
[1744402977157,1.27409,1570.5,1570.4,9.0849]
[1744402977359,2.94089,1570.5,1570.4,9.0849]
[1744402978254,2.94089,1570.5,1570.4,7.8108]
[1744402978858,2.94089,1570.5,1570.4,3.2078]
[1744402980557,2.94089,1570.5,1570.4,4.48197]
[1744402983267,1.6668,1570.5,1570.4,4.48197]
[1744402983458,2.13658,1570.7,1570.6,1.274]
[1744402984157,2.13658,1570.7,1570.6,2.8753]
[1744402985362,2.13658,1570.7,1570.6,1.6013]
[1744402985556,1.274,1570.6,1570.5,5.87603]
[1744402985761,6.39206,1571.0,1570.5,4.602]
[1744402985967,1.27383,1570.9,1570.8,1.27378]
[1744402986461,3.4404,1571.0,1570.7,1.6013]